Cogmind - Beta 13 @@@ ROGUE MODE // 2024.04.13 @ 22:26:39 Player: dakimasu Result: Destroyed by G-34 Mercenary with Small Laser Performance ------------- Evolutions (1) 500 Regions Visited (2) 400 Robots Destroyed (11) 55 Value Destroyed (238) 238 Prototype IDs (1) 20 Alien Tech Used (0) 0 Bonus (0) 0 TOTAL SCORE: 1213 Bonus ------- None Cogmind --------- Core Integrity 0/400 Matter 253/300 Energy 100/100 System Corruption 3% Temperature Cool (6) Movement Core (100) Ox1 Location -9/Materials Parts ------- > --- POWER (1) -------- (None) > --- PROPULSION (2) --- (None) > --- UTILITY (3) ------ Improved Power Shielding Improved Power Shielding > --- WEAPON (3) ------- (None) > --- INVENTORY (5) ---- Light Deuterium Engine Light Deuterium Engine High-capacity Matter Pod (0) Peak State ------------ > --- POWER ------------ Light Nuclear Core > --- PROPULSION ------- Aluminum Leg Aluminum Leg > --- UTILITY ---------- Improved Power Shielding Improved Power Shielding Medium Armor Plating > --- WEAPON ----------- Particle Gun Improved Medium Laser Improved Medium Laser > --- INVENTORY -------- High-capacity Matter Pod Improved Medium Laser Assault Rifle Light Assault Rifle [Rating: 21] Favorites ----------- Power Ion Engine Engine Ion Engine Power Core Light Nuclear Core Propulsion Aluminum Leg Leg Aluminum Leg Utility Structural Scanner Device Structural Scanner Processor Targeting Computer Protection Improved Power Shielding Weapon Light Assault Rifle Energy Gun Improved Medium Laser Ballistic Gun Light Assault Rifle Build | -11 -10 -9 ------- Run | Yrd Mat Mat Slots Evolved 2 | . . 2 Power . | . . . Propulsion . | . . . Utility 1 | . . 1 Weapon 1 | . . 1 Parts Attached 26 | 6 9 11 Power 5 | 1 2 2 Engine 3 | 1 1 1 Core 2 | . 1 1 Reactor . | . . . Propulsion 5 | 2 3 . Treads . | . . . Leg 5 | 2 3 . Wheel . | . . . Hover . | . . . Flight . | . . . Utility 7 | . 4 3 Device 3 | . 3 . Storage . | . . . Processor 1 | . 1 . Hackware . | . . . Protection 3 | . . 3 Artifact . | . . . Weapon 9 | 3 . 6 Energy Gun 4 | 1 . 3 Energy Cannon . | . . . Ballistic Gun 5 | 2 . 3 Ballistic Cannon . | . . . Launcher . | . . . Special Weapon . | . . . Impact Weapon . | . . . Slashing Weapon . | . . . Piercing Weapon . | . . . Special Melee Weapon . | . . . Unidentified Prototypes 1 | . . 1 Parts Lost 7 | . . 7 Power 1 | . . 1 Propulsion 2 | . . 2 Utility 1 | . . 1 Weapon 3 | . . 3 Highest Loss Streak 7 | . . 7 To Critical Strikes . | . . . Average Slot Usage (%) 93 | . 98 85 Engine 7 | . 10 3 Core 4 | . 3 6 Leg 24 | . 27 19 Device 13 | . 18 6 Processor 7 | . 8 6 Protection 6 | . . 16 Energy Gun 5 | . . 14 Ballistic Gun 21 | . 28 11 Naked Turns . | . . . Heaviest Build 25 | 8 10 25 Greatest Support 20 | 20 20 20 Greatest Overweight (x) 3 | 2 . 3 Average Overweight (x) . | . . . Largest Inventory Capacity 5 | 5 5 5 Average Capacity 5 | 5 5 5 Most Carried 5 | . . 5 Average Carried . | . . 2 Final Capacity 5 | 5 5 5 Final Carried 3 | . . 3 Class Distribution -------------------- 84% | Mutant 9% | Gunner 5% | Tank Dominant Class ---------------- Mutant | -10/Materials Mutant | -9/Materials Resources | -11 -10 -9 ----------- Run | Yrd Mat Mat Matter Collected 466 | 228 238 . Remotely . | . . . Salvage Created 276 | . 238 38 Parts 23 | . 17 6 Haulers Intercepted . | . . . Recyclers Shooed . | . . . Parts Field Recycled . | . . . Retrieved Matter . | . . . Parts Self-Destructed . | . . . Prevented . | . . . Kills | -11 -10 -9 ------- Run | Yrd Mat Mat Combat Hostiles Destroyed 10 | . 7 3 Guns 10 | . 7 3 Classes Destroyed 3 | . 3 . Watcher 1 | . 1 . Swarmer 6 | . 3 3 Grunt 4 | . 4 . Best Kill Streak 3 | . 3 3 Combat Bots Only 3 | . 3 3 Max Kills in Single Turn 2 | . 2 1 Gunslinging 1 | . 1 . Exploded . | . . . Melee . | . . . Uniques/NPCs Destroyed . | . . . Combat | -11 -10 -9 -------- Run | Yrd Mat Mat Hostile Shots Fired 158 | . 70 88 Missed 32 | . 19 13 Damage Taken 1569 | . 558 1011 Core 592 | . 184 408 Absorbed by Shields . | . . . Redirected to Shielding 74 | . . 74 Core Remaining (%) 63 | 100 26 . Volleys Fired 53 | . 32 21 Largest 3 | . 2 3 Hottest 177 | . 40 177 Shots Fired 102 | . 64 38 Gun 102 | . 64 38 Cannon . | . . . Launcher . | . . . Special . | . . . Kinetic 80 | . 64 16 Thermal 22 | . . 22 Explosive . | . . . Electromagnetic . | . . . Robot Hit Streak 11 | . 11 7 Robot Miss Streak 4 | . 4 3 Penetration Max . | . . . Secondary Targets 3 | . 2 1 Max Gunslinging Chain 1 | . 1 1 Shots Hit Robots 67 | . 45 22 Core Hits 23 | . 16 7 Critical Kills . | . . . Critical Parts Destroyed . | . . . Critical Strikes . | . . . Melee Attacks . | . . . Impact . | . . . Slashing . | . . . Piercing . | . . . Sneak Attacks . | . . . Combat Hostiles . | . . . Follow-up Attacks . | . . . Damage Inflicted 774 | . 458 316 Guns 748 | . 449 299 Cannons . | . . . Explosions . | . . . Melee . | . . . Ramming 26 | . 9 17 Kinetic 535 | . 449 86 Thermal 213 | . . 213 Explosive . | . . . Electromagnetic . | . . . Impact . | . . . Slashing . | . . . Piercing . | . . . Highest Corruption 3 | . . 3 Average Corruption 2 | . . 2 Corruption Purged . | . . . Corruption Blocked . | . . . Overload Shots . | . . . Overflow Damage . | . . . Projectiles . | . . . Explosions . | . . . Melee . | . . . Knockbacks . | . . . Impact . | . . . Kinetic . | . . . Secondary . | . . . Self-Inflicted Damage 4 | . . 4 Shots . | . . . Rammed 16 | . . 16 Targets Rammed 22 | . 6 16 Kicked 6 | . 6 . Crushed . | . . . Highest Temperature 595 | . 31 595 Average Temperature 172 | . 8 249 Received Heat Transfer 570 | . 237 333 Effects 10 | . . 10 Shutdowns 3 | . . 3 Energy Bleed 1 | . . 1 Interference 1 | . . 1 Short Circuit 3 | . . 3 Damage (minor) 2 | . . 2 Siege Activations . | . . . Robots Corrupted . | . . . Combat Hostiles . | . . . Parts Fried . | . . . Impact Corruptions . | . . . Robots Melted . | . . . Combat Hostiles . | . . . Parts Melted . | . . . Heat Transferred 481 | . . 481 Parts Sabotaged . | . . . Parts Stolen . | . . . Parts Stripped . | . . . Power Chain Reactions . | . . . Alert | -11 -10 -9 ------- Run | Yrd Mat Mat Peak Influence 130 | . 130 124 Initial 54 | . . 54 Average 52 | . 56 65 Maximum Alert Level . | . . . Low Security (%) 100 | 100 100 100 Level 1 . | . . . Level 2 . | . . . Level 3 . | . . . Level 4 . | . . . Level 5 . | . . . High Security . | . . . Max Security . | . . . Squads Dispatched 2 | . 1 1 Investigation . | . . . Extermination . | . . . Reinforcement 2 | . 1 1 Assault . | . . . Garrison . | . . . Intercept . | . . . Searches Triggered . | . . . Construction Impeded . | . . . Haulers Reinforced . | . . . Active Scanning Responses . | . . . Cargo Convoy Interrupts . | . . . Stealth | -11 -10 -9 --------- Run | Yrd Mat Mat Distress Signals 2 | . 1 1 Communications Jammed . | . . . Distress Signals . | . . . Times Spotted 22 | . 14 8 Peak Tracking Total 5 | . 5 5 Tactical Retreats 1 | . 1 . Traps | -11 -10 -9 ------- Run | Yrd Mat Mat Traps Triggered . | . . . Indirectly . | . . . Trap Hack Attempts . | . . . Triggered . | . . . Disarmed . | . . . Reprogrammed . | . . . Reused . | . . . Traps Extracted . | . . . Installed . | . . . Triggered . | . . . Machines | -11 -10 -9 ---------- Run | Yrd Mat Mat Machines Disabled . | . . . Max in Single Turn . | . . . Machines Repaired . | . . . Machines Dismantled . | . . . Machines Sabotaged . | . . . Overloaded Fab Kills . | . . . Hacking | -11 -10 -9 --------- Run | Yrd Mat Mat Machines Accessed . | . . . Terminals . | . . . Fabricators . | . . . Repair Stations . | . . . Recycling Units . | . . . Scanalyzers . | . . . Garrison Access . | . . . Total Hacks . | . . . Successful . | . . . Failed . | . . . Catastrophic . | . . . Database Lockouts . | . . . Manual . | . . . Terminals . | . . . Fabricators . | . . . Repair Stations . | . . . Recycling Units . | . . . Scanalyzers . | . . . Garrison Access . | . . . Terminal Hacks . | . . . Fabricator Hacks . | . . . Repair Station Hacks . | . . . Recycling Unit Hacks . | . . . Scanalyzer . | . . . Garrison Access Hacks . | . . . Unauthorized Hacks . | . . . Terminals . | . . . Fabricators . | . . . Repair Stations . | . . . Recycling Units . | . . . Scanalyzers . | . . . Garrison Access . | . . . Data Cores Recovered . | . . . Used . | . . . Hacking Detections . | . . . Full Trace Events . | . . . Feedback Events . | . . . Feedback Blocked . | . . . Robot Schematics Acquired . | . . . Robots Built . | . . . Authchips . | . . . Time . | . . . Total Robot Build Rating . | . . . Part Schematics Acquired . | . . . Parts Built . | . . . Authchips . | . . . Time . | . . . Total Part Build Rating . | . . . Parts Repaired . | . . . Time . | . . . Parts Recycled . | . . . Recycled Matter . | . . . Retrieved Matter . | . . . Retrieved Components . | . . . Parts Scanalyzed . | . . . Part Schematics Acquired . | . . . Parts Damaged . | . . . Bothacking | -11 -10 -9 ------------ Run | Yrd Mat Mat Used RIF Installer . | . . . Robots Hacked . | . . . Non-combat . | . . . Combat . | . . . Robot Hacks Applied . | . . . Relay Couplers Released . | . . . Fabnet Peak Effective % . | . . . Robots Rewired . | . . . Allies Hacked . | . . . Hacks Repelled . | . . . Allies | -11 -10 -9 -------- Run | Yrd Mat Mat Total Allies . | . . . Largest Group . | . . . Highest-Rated Group . | . . . Highest-Rated Ally . | . . . Total Orders . | . . . Ally Attacks . | . . . Total Damage . | . . . Kills . | . . . Allies Corrupted . | . . . Allies Melted . | . . . Intel | -11 -10 -9 ------- Run | Yrd Mat Mat Robot Analysis Total . | . . . Derelict Logs Recovered . | . . . Drone Launches . | . . . Drone Recoveries . | . . . Exploration | -11 -10 -9 ------------- Run | Yrd Mat Mat Turns Passed 1060 | 122 568 370 Spaces Moved 676 | 105 379 192 Core 51 | 45 . 6 Treads . | . . . Legs 625 | 60 379 186 Wheels . | . . . Hover . | . . . Flight . | . . . Fastest Speed 50 | 50 120 100 Average Speed 122 | 108 120 135 Slowest Speed 260 | 150 120 260 Overloaded Moves . | . . . Propulsion Burnouts . | . . . Robots Hopped . | . . . Cave-ins Triggered . | . . . Exploration Rate (%) 15 | 6 33 7 Regions Visited 2 Branch Regions . Pre-discovered Areas . | . . . Known Exits Taken . | . . . Unknown Exits Taken 2 | 1 1 . Scrap Searched . | . . . Spaces Dug . | . . . Terrain Destroyed . | . . . Melee . | . . . Projectile . | . . . AOE . | . . . Terrain Rammed . | . . . Walls Destroyed . | . . . Machines Disabled . | . . . Actions | -11 -10 -9 --------- Run | Yrd Mat Mat Total 800 | 111 432 257 Wait . | . . . Move 674 | 104 378 192 Hop . | . . . Pick Up 8 | . . 8 Fast Attach 21 | 6 9 6 Attach 2 | . . 2 Detach . | . . . Swap 3 | . . 3 Drop 17 | 1 7 9 Fire 53 | . 32 21 Melee . | . . . Ram 16 | . . 16 Kick 6 | . 6 . Crush . | . . . Escape Stasis . | . . . Rewire . | . . . Trap . | . . . Miscellaneous . | . . . Route ------- -11/Scrapyard -10/Materials (discovered 2 exits: [*Mat] / [*Min]) -9/Materials History --------- Turn | Location | Event 46 | -11/Scrapyard | Discovered new exit (range 15) 123 | -11/Scrapyard | Entered Materials 300 | -10/Materials | Build established: Mutant 380 | -10/Materials | Discovered new exit (range 13) 488 | -10/Materials | Discovered new exit (range 7) 591 | -10/Materials | Core integrity fell below 50% 691 | -10/Materials | Entered another Materials area 691 | -9/Materials | Evolved 2 slots: Utility x1, Weapon x1 1039 | -9/Materials | Core integrity fell below 50% 1054 | -9/Materials | Core integrity fell below 20% 1061 | -9/Materials | Destroyed by G-34 Mercenary with Small Laser Last Messages --------------- 01011_ Lgt. Assault Rifle destroyed. 01013_ U-05 Engineer lays Concrete. 01014_ U-05 Engineer builds a Wall. 01015_ M-13 Machinist repairs Y-45 Defender. 01016_ T-07 Excavator is excavating. 01017_ M-13 Machinist repairs Hvy. Assault Rifle. 01019_ M-13 Machinist repairs Lgt. Treads. 01023_ Aluminum Leg destroyed. 01026_ Critical hit (Burn: +37). 01031_ Slammed into Y-45 Defender. 01035_ Broken Aluminum Leg destroyed. 01035_ Slammed into Y-45 Defender. 01035_ Destabilizing: System corrupted (+2). 01037_ Slammed into Y-45 Defender. 01049_ Lgt. Deuterium Engine destroyed. 01051_ Slammed into Y-45 Defender. 01056_ Imp. Medium Laser destroyed. 01057_ Slammed into Y-45 Defender. 01058_ Destabilizing: System corrupted (+1). Map ----- +----------------------------------------------------+ | | | | | | | | | ?????????????????????????????????????? | | ?????????????????????????????????????? | | ?????????????????????????????????????? | | ?????????????????????????????????????? | | ?????????????????????????????????????? | | ?????????????????????????????????????? | | ?????????????????????????????????????? | | ?????????????????????????????????????? | | ???????????? ????????????????????????? | | ???????????? ????????????????????????? | | ???????????? "???????????????????????? | | ???????????? ???????????????????????? | | ???????????? ???????????????????????? | | ????????????#+#??????????????????????? | | ????????????# #??????????????????????? | | ????????????# #??????????????????????? | | ???????????## ###????????????????????? | | ???????????## ###????????????????????? | | ???????????## +????????????????????? | | ??????????### #????????????????????? | | ??????????###Y ######???????????????? | | ??????????## @m #??????????? | | ??????????## #######???????????????? | | ??????????## ##????????????????????? | | ??????????## ######????????????????? | | ????#?????## w######????????????????? | | ???# ##### !!##????????????????? | | ??# ### !!##????????????????? | | ?? # !!##????????????????? | | ?? ==[*##????????????????? | | ?????### # [%!* ##????????????????? | | ???????##### %*[[[##????????????????? | | ??????????## g######????????????????? | | ?????????### ######???? ###????????? | | ?????????### #########? ###????????? | | ????####### ####### #????????? | | ????####### ""???????????? | | ????## T ??????????? | | ????## #### ????????? | | ????## #### ####### ?????????? | | ???????######+##########? ???????????? | | ???????## # ##?????????????? | | ???????## # ##?????????????? | | ???????## """ + ##?????????????? | | ???????## """ # ##?????????????? | | ???????## """ # ##?????????????? | +----------------------------------------------------+ Best States ------------- Heat Dissipation 39 Energy Generation 14 Energy Capacity 250 Matter Stores 300 Matter Capacity 300 Sight Range 16 Terrain Scan Density 10 Armor Coverage 225 Power Shielding 66 Evasion (%) 55 Targeting Accuracy 5 Item Schematics ----------------- None Robot Schematics ------------------ None Fabricated ------------ Nothing Alien Tech Used ----------------- None Achievements -------------- Crack Shot Risk Taker Challenges ------------ None Game ------ Seed BombTransportSaw Manual? 0 Play Time 00:22:59 Cumulative 1.6 hours Start 2024.04.13 @ 21:41:28 End 2024.04.13 @ 22:26:39 Sessions 3 Manual Loads 0 Difficulty Rogue Special Mode None Game No. 3 Rogue 3 Adventurer 0 Explorer 0 Win Type - Total 0 Types 0/0/0/0/0/0/0/0/0 Lore% 0 Gallery% 4 Achievement% 5 Wizard Run 0 Options --------- Layout 1 ASCII 1 Keyboard 0 Movement Arrows Keybinds 0 Fullscreen 1 Font 16/Terminus Map View 50x40 Zoom Use 0% Tactical HUD 1 Map Filters NONE Filters NONE Steam SD RUN: b52ad4c8-aa82-4613-8705-2f29227fd1cb